fUSD/lending_fUSD_20260116
["ID","MTS","AMOUNT","RATE_DAILY","PERIOD"]
[402149472,1768553629508,-500.0,0.00036986,10]
[402149473,1768553629520,-500.0,0.00036986,10]
[402149474,1768553629529,-500.0,0.00036986,10]
[402149475,1768553629543,-500.0,0.00036986,10]
[402149476,1768553629552,-500.0,0.00036986,10]
[402149477,1768553629561,-618.86,0.00036986,10]
[402149478,1768553629570,-834.67,0.00036986,10]
[402149479,1768553629582,-500.0,0.00036986,10]
[402149480,1768553629591,-500.0,0.00036986,10]
[402149481,1768553629600,-4949.68,0.00036986,10]
[402149482,1768553629610,-1730.65,0.00036986,10]
[402149483,1768553629619,-500.0,0.00036986,10]
[402149484,1768553629629,-500.0,0.00036986,10]
[402149485,1768553629638,-500.46,0.00036986,10]
[402149486,1768553629648,-930.98,0.00036986,10]
[402149487,1768553629658,-875.62,0.00036986,10]
[402149488,1768553629668,-500.0,0.00036986,10]
[402149489,1768553629679,-500.0,0.00036986,10]
[402149490,1768553629689,-500.0,0.00036986,10]
[402149491,1768553629699,-1041.0,0.00036986,10]
[402149492,1768553629710,-500.0,0.00036986,10]
[402149493,1768553629720,-500.0,0.00036986,10]
[402149494,1768553629730,-1262.31,0.00036986,10]
[402149495,1768553629740,-524.92,0.00036986,10]
[402149496,1768553629751,-591.83,0.00036986,10]
[402149497,1768553629761,-500.0,0.00036986,10]
[402149498,1768553629770,-500.0,0.00036986,10]
[402149499,1768553629779,-614.68,0.00036986,10]
[402149500,1768553629788,-500.0,0.00036986,10]
[402149501,1768553629797,-790.99,0.00036986,10]
[402149502,1768553629806,-500.0,0.00036986,10]
[402149503,1768553629815,-1848.72,0.00036986,10]
[402149504,1768553629825,-353.65,0.00036986,2]
[402149505,1768553629835,-500.0,0.00036986,10]
[402149506,1768553629845,-1044.21,0.00036986,10]
[402149507,1768553629855,-500.0,0.00036986,10]
[402149508,1768553629864,-500.0,0.00036986,10]
[402149509,1768553629874,-500.0,0.00036986,10]
[402149510,1768553629884,-1947.44,0.00036986,10]
[402149511,1768553629894,-629.32,0.00036986,10]
[402149512,1768553629903,-1553.42,0.00036986,10]
[402149513,1768553629913,-1024.82,0.00036986,10]
[402149514,1768553629923,-500.0,0.00036986,10]
[402149515,1768553629934,-875.71,0.00036986,10]
[402149516,1768553629944,-500.0,0.00036986,10]
[402149517,1768553629955,-795.66,0.00036986,10]
[402149518,1768553629966,-500.0,0.00036986,10]
[402149519,1768553629976,-1036.49,0.00036986,10]
[402149520,1768553629986,-1013.98,0.00036986,10]
[402149521,1768553629996,-562.25,0.00036986,10]
[402149522,1768553630005,-548.64,0.00036986,10]
[402149523,1768553630016,-543.96,0.00036986,10]
[402149524,1768553630025,-1422.5,0.00036986,10]
[402149525,1768553630035,-1126.68,0.00036986,10]
[402149526,1768553630044,-2121.76,0.00036986,10]
[402149527,1768553630054,-1905.23,0.00036986,10]
[402149528,1768553630064,-532.76,0.00036986,10]
[402149529,1768553630073,-502.52,0.00036986,10]
[402149530,1768553630083,-500.0,0.00036986,10]
[402149531,1768553630092,-500.0,0.00036986,10]
[402149532,1768553630102,-500.0,0.00036986,10]
[402149533,1768553630111,-540.07,0.00036986,10]
[402149534,1768553630121,-1016.35,0.00036986,10]
[402149535,1768553630130,-5056.94,0.00036986,10]
[402149536,1768553630140,-592.16,0.00036986,10]
[402149537,1768553630149,-889.56,0.00036986,10]
[402149538,1768553630159,-500.0,0.00036986,10]
[402149539,1768553630169,-384.52432269,0.00036986,10]
[402149540,1768553630178,-1150.45,0.00036986,10]
[402149541,1768553630188,-1345.33,0.00036986,10]
[402149542,1768553630198,-648.45,0.00036986,10]
[402149543,1768553630207,-1052.14,0.00036986,10]
[402149544,1768553630216,-500.0,0.00036986,10]
[402149545,1768553630226,-990.43,0.00036986,10]
[402149546,1768553630235,-500.0,0.00036986,10]
[402149547,1768553630244,-877.08,0.00036986,10]
[402149548,1768553630253,-1245.81,0.00036986,10]
[402149549,1768553630263,-500.0,0.00036986,10]
[402149550,1768553630272,-665.86,0.00036986,10]
[402149551,1768553630281,-1029.8,0.00036986,10]
[402149552,1768553630291,-1298.7,0.00036986,10]
[402149553,1768553630300,-581.72,0.00036986,10]
[402149554,1768553630310,-850.69,0.00036986,10]
[402149555,1768553630319,-995.5,0.00036986,10]
[402149556,1768553630328,-500.0,0.00036986,10]
[402149557,1768553630338,-1075.5,0.00036986,10]
[402149558,1768553630347,-500.0,0.00036986,10]
[402149559,1768553630356,-500.0,0.00036986,10]
[402149560,1768553630366,-519.23,0.00036986,10]
[402149561,1768553630375,-529.03,0.00036986,10]
[402149562,1768553630384,-716.08,0.00036986,10]
[402149563,1768553630394,-500.0,0.00036986,10]
[402149564,1768553630403,-1363.31,0.00036986,10]
[402149565,1768553630412,-598.71,0.00036986,10]
[402149566,1768553630421,-1221.02,0.00036986,10]
[402149567,1768553630430,-1064.34,0.00036986,10]
[402149568,1768553630439,-823.04,0.00036986,10]
[402149569,1768553630449,-500.0,0.00036986,10]
[402149570,1768553630458,-2853.19,0.00036986,10]
[402149571,1768553630467,-500.0,0.00036986,10]
[402149572,1768553630476,-496.24577441,0.00036986,10]
[402149573,1768553630486,-500.0,0.00036986,10]
[402149574,1768553630495,-549.28,0.00036986,10]
[402149575,1768553630505,-500.0,0.00036986,10]
[402149576,1768553630515,-500.0,0.00036986,10]
[402149577,1768553630524,-913.43,0.00036986,10]
[402149578,1768553630533,-591.9,0.00036986,10]
[402149579,1768553630546,-500.0,0.00036986,10]
[402149580,1768553630556,-500.0,0.00036986,10]
[402149581,1768553630566,-2393.97,0.00036986,10]
[402149582,1768553630578,-500.0,0.00036986,10]
[402149583,1768553630590,-500.0,0.00036986,10]
[402149584,1768553630599,-2257.21,0.00036986,10]
[402149585,1768553630611,-589.47,0.00036986,10]
[402149586,1768553630624,-805.83,0.00036986,10]
[402149587,1768553630633,-546.1,0.00036986,10]
[402149588,1768553630643,-500.0,0.00036986,10]
[402149589,1768553630654,-500.0,0.00036986,10]
[402149590,1768553630663,-1412.18,0.00036986,10]
[402149591,1768553630672,-500.0,0.00036986,10]
[402149592,1768553630682,-500.0,0.00036986,10]
[402149593,1768553630692,-500.0,0.00036986,10]
[402149594,1768553630702,-500.0,0.00036986,10]
[402149595,1768553630711,-200.0,0.00036986,120]
[402149596,1768553630721,-712.99,0.00036986,10]
[402149597,1768553630730,-500.0,0.00036986,10]
[402149598,1768553630740,-661.07,0.00036986,10]
[402149599,1768553630751,-732.11,0.00036986,10]
[402149600,1768553630761,-693.86,0.00036986,10]
[402149601,1768553630770,-1182.17,0.00036986,10]
[402149602,1768553630779,-713.12,0.00036986,10]
[402149603,1768553630790,-652.47,0.00036986,10]
[402149604,1768553630801,-714.22,0.00036986,10]
[402149605,1768553630813,-652.5,0.00036986,10]
[402149606,1768553630824,-1245.62,0.00036986,10]
[402149607,1768553630834,-500.0,0.00036986,10]
[402149608,1768553630843,-500.0,0.00036986,10]
[402149609,1768553630855,-500.0,0.00036986,10]
[402149610,1768553630864,-1497.09,0.00036986,10]
[402149611,1768553630874,-1210.4,0.00036986,10]
[402149612,1768553630884,-1212.59,0.00036986,10]
[402149613,1768553630895,-941.66,0.00036986,10]
[402149614,1768553630904,-1223.9,0.00036986,10]
[402149615,1768553630913,-500.0,0.00036986,10]
[402149616,1768553630923,-1292.5,0.00036986,10]
[402149617,1768553630933,-1141.45,0.00036986,10]
[402149618,1768553630942,-885.86,0.00036986,10]
[402149619,1768553630952,-520.6,0.00036986,10]
[402149620,1768553630962,-3901.38,0.00036986,10]
[402149621,1768553630971,-1228.85,0.00036986,10]
[402149622,1768553630981,-532.57,0.00036986,10]
[402149623,1768553630990,-1219.5,0.00036986,10]
[402149624,1768553631000,-544.68,0.00036986,10]
[402149625,1768553631010,-2909.8,0.00036986,10]
[402149626,1768553631020,-858.87,0.00036986,10]
[402149627,1768553631029,-500.0,0.00036986,10]
[402149628,1768553631039,-993.01,0.00036986,10]
[402149629,1768553631048,-999.49,0.00036986,10]
[402149630,1768553631058,-500.0,0.00036986,10]
[402149631,1768553631067,-1760.07,0.00036986,10]
[402149632,1768553631078,-553.74,0.00036986,10]
[402149633,1768553631087,-500.0,0.00036986,10]
[402149634,1768553631096,-1541.19,0.00036986,10]
[402149635,1768553631106,-500.0,0.00036986,10]
[402149636,1768553631115,-599.03,0.00036986,10]
[402149637,1768553631124,-1004.55,0.00036986,10]
[402149638,1768553631134,-1256.3,0.00036986,10]
[402149639,1768553631143,-722.08,0.00036986,10]
[402149640,1768553631152,-500.0,0.00036986,10]
[402149641,1768553631162,-1627.41,0.00036986,10]
[402149642,1768553631171,-500.0,0.00036986,10]
[402149643,1768553631180,-1143.9,0.00036986,10]
[402149644,1768553631189,-1224.65,0.00036986,10]
[402149645,1768553631198,-162.24725732,0.00036986,10]
[402149646,1768553631208,-560.6,0.00036986,10]
[402149647,1768553631217,-2225.78,0.00036986,10]
[402149648,1768553631226,-1155.7,0.00036986,10]
[402149649,1768553631594,-500.0,0.00036986,10]
[402149650,1768553631608,-614.31,0.00036986,10]
[402149651,1768553631618,-500.0,0.00036986,10]
[402149652,1768553631627,-2192.51,0.00036986,10]
[402149653,1768553631636,-637.11,0.00036986,10]
[402149654,1768553631646,-500.0,0.00036986,10]
[402149655,1768553631655,-500.0,0.00036986,10]
[402149656,1768553631664,-758.24,0.00036986,10]
[402149657,1768553631673,-2013.58,0.00036986,10]
[402149658,1768553631683,-500.0,0.00036986,10]
[402149659,1768553631693,-2864.87,0.00036986,10]
[402149660,1768553631702,-808.72,0.00036986,10]
[402149661,1768553631712,-1567.87,0.00036986,10]
[402149662,1768553631721,-518.17,0.00036986,10]
[402149663,1768553631730,-1811.28,0.00036986,10]
[402149664,1768553631739,-558.81,0.00036986,10]
[402149665,1768553631749,-502.62945216,0.00036986,5]
[402149666,1768553631758,-1071.23,0.00036986,10]
[402149667,1768553631767,-659.01,0.00036986,10]
[402149668,1768553631776,-866.89,0.00036986,10]
[402149669,1768553631787,-1032.65,0.00036986,10]
[402149670,1768553631796,-759.31,0.00036986,10]
[402149671,1768553631805,-637.41,0.00036986,10]
[402149672,1768553631814,-1020.76,0.00036986,10]
[402149673,1768553631823,-1128.16,0.00036986,10]
[402149674,1768553631832,-547.39,0.00036986,10]
[402149675,1768553631841,-7210.62,0.00036986,10]
[402149676,1768553631851,-5211.07,0.00036986,10]
[402149677,1768553631861,-1681.96,0.00036986,10]
[402149678,1768553631870,-211.69139558,0.00036986,10]
[402149679,1768553631879,-729.24,0.00036986,10]
[402149680,1768553631889,-500.0,0.00036986,10]
[402149681,1768553631898,-5144.07,0.00036986,10]
[402149682,1768553631907,-1064.3,0.00036986,10]
[402149683,1768553631917,-521.48,0.00036986,10]
[402149684,1768553631926,-532.27,0.00036986,10]
[402149685,1768553631936,-500.0,0.00036986,10]
[402149686,1768553631945,-1000.95,0.00036986,10]
[402149687,1768553631955,-1000.0,0.00036986,10]
[402149688,1768553631965,-672.3,0.00036986,10]
[402149689,1768553631974,-2351.16,0.00036986,10]
[402149690,1768553631984,-679.92,0.00036986,10]
[402149691,1768553631993,-642.7,0.00036986,10]
[402149692,1768553632003,-1048.19,0.00036986,10]
[402149693,1768553632012,-395.36246509,0.00036986,10]
[402149694,1768553632022,-500.0,0.00036986,10]
[402149695,1768553632031,-2044.82,0.00036986,10]
[402149696,1768553632041,-804.46,0.00036986,10]
[402149697,1768553632051,-500.0,0.00036986,10]
[402149698,1768553632060,-735.56,0.00036986,10]
[402149699,1768553632070,-500.0,0.00036986,10]
[402149700,1768553632080,-793.57,0.00036986,10]
[402149701,1768553632091,-500.0,0.00036986,10]
[402149702,1768553632100,-500.0,0.00036986,10]
[402149703,1768553632110,-2221.23,0.00036986,10]
[402149704,1768553632119,-1159.07,0.00036986,10]
[402149705,1768553632128,-500.0,0.00036986,10]
[402149706,1768553632138,-580.85,0.00036986,10]
[402149707,1768553632147,-941.49,0.00036986,10]
[402149708,1768553632156,-599.94,0.00036986,10]
[402149709,1768553632166,-613.48706225,0.00036986,10]
[402149710,1768553632176,-500.0,0.00036986,10]
[402149711,1768553632185,-677.99,0.00036986,10]
[402149712,1768553632194,-1202.41,0.00036986,10]
[402149713,1768553632203,-2033.16,0.00036986,10]
[402149714,1768553632212,-2114.42,0.00036986,10]
[402149715,1768553632223,-1524.13,0.00036986,10]
[402149716,1768553632232,-953.55,0.00036986,10]
[402149717,1768553632242,-1013.89,0.00036986,10]
[402149718,1768553632251,-556.39,0.00036986,10]
[402149719,1768553632260,-500.0,0.00036986,10]
[402149720,1768553632269,-500.0,0.00036986,10]
[402149721,1768553632279,-1302.19,0.00036986,10]
[402149722,1768553632288,-593.7,0.00036986,10]
[402149723,1768553632298,-859.25,0.00036986,10]
[402149724,1768553632307,-623.79,0.00036986,10]
[402149725,1768553632318,-1282.3,0.00036986,10]
[402149726,1768553632328,-500.0,0.00036986,10]
[402149727,1768553632338,-500.0,0.00036986,10]
[402149728,1768553632348,-1084.77,0.00036986,10]
[402149729,1768553632360,-500.0,0.00036986,10]
[402149730,1768553632370,-500.0,0.00036986,10]
[402149731,1768553632379,-606.36,0.00036986,10]
[402149732,1768553632388,-500.0,0.00036986,10]
[402149733,1768553632398,-781.44,0.00036986,10]
[402149734,1768553632407,-616.11,0.00036986,10]
[402149735,1768553632416,-500.0,0.00036986,10]
[402149736,1768553632426,-731.99,0.00036986,10]
[402149737,1768553632435,-907.52,0.00036986,10]
[402149738,1768553632444,-849.36,0.00036986,10]
[402149739,1768553632454,-500.0,0.00036986,10]
[402149740,1768553632463,-643.32,0.00036986,10]
[402149741,1768553632472,-1477.23,0.00036986,10]
[402149742,1768553632482,-500.0,0.00036986,10]
[402149743,1768553632492,-823.29,0.00036986,10]
[402149744,1768553632502,-802.79,0.00036986,10]
[402149745,1768553632511,-725.02,0.00036986,10]
[402149746,1768553632521,-1029.59,0.00036986,10]
[402149747,1768553632531,-2502.55,0.00036986,10]
[402149748,1768553632543,-713.0,0.00036986,10]
[402149749,1768553632553,-1172.78,0.00036986,10]
[402149750,1768553632563,-1013.39,0.00036986,10]
[402149751,1768553632574,-500.0,0.00036986,10]
[402149752,1768553632585,-500.0,0.00036986,10]
[402149753,1768553632594,-764.71,0.00036986,10]
[402149754,1768553632604,-761.36,0.00036986,10]
[402149755,1768553632615,-704.6,0.00036986,10]
[402149756,1768553632626,-500.0,0.00036986,10]
[402149757,1768553632637,-4884.35,0.00036986,10]
[402149758,1768553632648,-629.83,0.00036986,10]
[402149759,1768553632658,-1262.69,0.00036986,10]
[402149760,1768553632670,-500.0,0.00036986,10]
[402149761,1768553632681,-1064.4,0.00036986,10]
[402149762,1768553632691,-500.0,0.00036986,10]
[402149763,1768553632701,-564.83,0.00036986,10]
[402149764,1768553632711,-1260.28,0.00036986,10]
[402149765,1768553632721,-662.32,0.00036986,10]
[402149766,1768553632731,-1785.36,0.00036986,10]
[402149767,1768553632741,-1338.09,0.00036986,10]
[402149768,1768553632751,-750.48,0.00036986,10]
[402149769,1768553632760,-500.0,0.00036986,10]
[402149770,1768553632771,-897.64,0.00036986,10]
[402149771,1768553632782,-500.0,0.00036986,10]
[402149772,1768553632791,-591.5,0.00036986,10]
[402149773,1768553632800,-500.0,0.00036986,10]
[402149774,1768553632809,-1018.43,0.00036986,10]
[402149775,1768553632818,-764.04,0.00036986,10]
[402149776,1768553632828,-747.98,0.00036986,10]
[402149777,1768553632837,-500.0,0.00036986,10]
[402149778,1768553632847,-500.0,0.00036986,10]
[402149779,1768553632858,-500.0,0.00036986,10]
[402149780,1768553632868,-505.41,0.00036986,10]
[402149781,1768553632877,-500.0,0.00036986,10]
[402149782,1768553632888,-500.0,0.00036986,10]
[402149783,1768553632898,-6302.12,0.00036986,10]
[402149784,1768553632907,-617.48,0.00036986,10]
[402149785,1768553632917,-1736.72,0.00036986,10]
[402149786,1768553632926,-500.0,0.00036986,10]
[402149787,1768553632936,-500.0,0.00036986,10]
[402149788,1768553632945,-500.0,0.00036986,10]
[402149789,1768553632955,-500.0,0.00036986,10]
[402149790,1768553632964,-667.66,0.00036986,10]
[402149791,1768553632973,-1002.58,0.00036986,10]
[402149792,1768553632982,-528.13,0.00036986,10]
[402149793,1768553632992,-500.0,0.00036986,10]
[402149794,1768553633001,-1041.6,0.00036986,10]
[402149795,1768553633011,-500.0,0.00036986,10]
[402149796,1768553633020,-848.85,0.00036986,10]
[402149797,1768553633030,-500.0,0.00036986,10]
[402149798,1768553633040,-500.0,0.00036986,10]
[402149799,1768553633049,-1353.3,0.00036986,10]
[402149800,1768553633058,-500.0,0.00036986,10]
[402149801,1768553633068,-1109.73,0.00036986,10]
[402149802,1768553633079,-500.0,0.00036986,10]
[402149803,1768553633088,-1021.74,0.00036986,10]
[402149804,1768553633098,-623.92,0.00036986,10]
[402149805,1768553633108,-737.24,0.00036986,10]
[402149806,1768553633118,-539.09,0.00036986,10]
[402149807,1768553633128,-935.75,0.00036986,10]
[402149808,1768553633138,-1333.16,0.00036986,10]
[402149809,1768553633148,-907.64,0.00036986,10]
[402149810,1768553633158,-535.61,0.00036986,10]
[402149811,1768553633168,-686.98,0.00036986,10]
[402149812,1768553633177,-878.33,0.00036986,10]
[402149813,1768553633187,-664.49,0.00036986,10]
[402149814,1768553633197,-500.0,0.00036986,10]
[402149815,1768553633206,-1173.84,0.00036986,10]
[402149816,1768553633216,-500.0,0.00036986,10]
[402149817,1768553633227,-9836.18,0.00036986,10]
[402149818,1768553633237,-500.0,0.00036986,10]
[402149819,1768553633247,-500.0,0.00036986,10]
[402149820,1768553633257,-500.0,0.00036986,10]
[402149821,1768553633267,-1566.32,0.00036986,10]
[402149822,1768553633277,-915.15,0.00036986,10]
[402149823,1768553633287,-754.56,0.00036986,10]
[402149824,1768553633296,-500.0,0.00036986,10]
[402149825,1768553633306,-1137.0,0.00036986,10]
[402149826,1768553633315,-500.0,0.00036986,10]
[402149827,1768553633326,-600.0,0.00036986,30]
[402149828,1768553633335,-150.0,0.00036988,7]
[402149829,1768553633344,-300.0,0.00037,120]
[402149830,1768553633354,-300.0,0.00037,120]
[402149831,1768553633364,-240.95,0.00037,14]
[402149832,1768553633374,-250.0,0.00037021,5]
[402149833,1768553633385,-238.90934185,0.0003704,7]
[402149834,1768553633394,-200.06159783,0.0003704,7]
[402149835,1768553633403,-162.8115885,0.0003704,7]
[402149836,1768553633413,-214.36344643,0.0003704,7]
[402149837,1768553633422,-203.67457519,0.0003704,7]
[402149838,1768553633431,-303.49476013,0.0003704,7]
[402149839,1768553633440,-167.99625046,0.0003704,7]
[402149840,1768553633449,-150.0,0.00037078,7]
[402149841,1768553633459,-2439.0,0.00037083,2]
[402149842,1768553633468,-1202.0,0.00037083,2]
[402149843,1768553633479,-500.0,0.00037095,120]
[402149844,1768553633488,-500.0,0.00037095,120]
[402149845,1768553633498,-238.90934185,0.00037097,7]
[402149846,1768553633507,-200.06159783,0.00037097,7]
[402149847,1768553633517,-162.8115885,0.00037097,7]
[402149848,1768553633527,-214.36344643,0.00037097,7]
[402149849,1768553633538,-203.67457519,0.00037097,7]
[402149850,1768553633551,-303.49476013,0.00037097,7]
[402149851,1768553633560,-167.99625046,0.00037097,7]
[402149852,1768553633570,-150.0,0.00037103,7]
[402149853,1768553633581,-150.0,0.00037121,7]
[402149854,1768553633591,-300.0,0.00037151,60]
[402149855,1768553633600,-238.90934185,0.00037155,7]
[402149856,1768553633611,-200.06159783,0.00037155,7]
[402149857,1768553633623,-162.8115885,0.00037155,7]
[402149858,1768553633633,-214.36344643,0.00037155,7]
[402149859,1768553633643,-150.0,0.00037155,7]
[402149860,1768553633653,-203.67457519,0.00037155,7]
[402149861,1768553633663,-303.49476013,0.00037155,7]
[402149862,1768553633672,-167.99625046,0.00037155,7]
[402149863,1768553633681,-159.68,0.00037195,120]
[402149864,1768553633691,-189.6792318,0.000372,120]
[402149865,1768553633700,-238.90934185,0.00037212,7]
[402149866,1768553633709,-200.06159783,0.00037212,7]
[402149867,1768553633718,-162.8115885,0.00037212,7]
[402149868,1768553633728,-214.36344643,0.00037212,7]
[402149869,1768553633737,-203.67457519,0.00037212,7]
[402149870,1768553633746,-303.49476013,0.00037212,7]
[402149871,1768553633756,-167.99625046,0.00037212,7]
[402149872,1768553633765,-192.64323811,0.00037212,120]
[402149873,1768553633774,-150.0,0.00037216,7]
[402149874,1768553633784,-150.0,0.00037219,7]
[402149875,1768553633793,-150.0,0.00037233,7]
[402149876,1768553633803,-1700.0,0.0003726,14]
[402149877,1768553633812,-1000.0,0.0003726,2]
[402149878,1768553633822,-567.28,0.0003726,10]
[402149879,1768553633831,-1031.15,0.0003726,10]
[402149880,1768553633841,-151.0,0.0003726,10]
[402149881,1768553633850,-199.543983,0.0003726,10]
[402149882,1768553633860,-163.978129,0.0003726,10]
[402149883,1768553633869,-500.0,0.0003726,10]
[402149884,1768553633879,-500.0,0.0003726,10]
[402149885,1768553633888,-500.0,0.0003726,10]
[402149886,1768553633897,-808.21,0.0003726,10]
[402149887,1768553633907,-813.73,0.0003726,10]
[402149888,1768553633916,-973.06,0.0003726,10]
[402149889,1768553633926,-504.36,0.0003726,10]
[402149890,1768553633935,-500.0,0.0003726,10]
[402149891,1768553633945,-674.01,0.0003726,10]
[402149892,1768553633955,-500.0,0.0003726,10]
[402149893,1768553634123,-500.0,0.0003726,10]
[402149894,1768553634133,-1037.35,0.0003726,10]
[402149895,1768553634142,-525.62,0.0003726,10]
[402149896,1768553634152,-1211.73,0.0003726,10]
[402149897,1768553634162,-500.0,0.0003726,10]
[402149898,1768553634173,-654.54,0.0003726,10]
[402149899,1768553634183,-902.4,0.0003726,10]
[402149900,1768553634193,-500.0,0.0003726,10]
[402149901,1768553634203,-548.97,0.0003726,10]
[402149902,1768553634212,-915.0,0.0003726,10]
[402149903,1768553634221,-500.0,0.0003726,10]
[402149904,1768553634231,-786.94,0.0003726,10]
[402149905,1768553634240,-1003.52,0.0003726,10]
[402149906,1768553634249,-500.0,0.0003726,10]
[402149907,1768553634258,-500.0,0.0003726,10]
[402149908,1768553634267,-500.0,0.0003726,10]
[402149909,1768553634277,-500.0,0.0003726,10]
[402149910,1768553634286,-500.0,0.0003726,10]
[402149911,1768553634295,-837.95,0.0003726,10]
[402149912,1768553634304,-551.36,0.0003726,10]
[402149913,1768553634314,-500.0,0.0003726,10]
[402149914,1768553634323,-548.17,0.0003726,10]
[402149915,1768553634343,-500.0,0.0003726,10]
[402149916,1768553634363,-500.0,0.0003726,10]
[402149917,1768553634375,-1196.74,0.0003726,10]
[402149918,1768553634384,-587.74,0.0003726,10]
[402149919,1768553634394,-500.0,0.0003726,10]
[402149920,1768553634405,-1100.8,0.0003726,10]
[402149921,1768553634414,-500.0,0.0003726,10]
[402149922,1768553634425,-1067.27,0.0003726,10]
[402149923,1768553634435,-500.0,0.0003726,10]
[402149924,1768553634445,-500.0,0.0003726,10]
[402149925,1768553634454,-826.56,0.0003726,10]
[402149926,1768553634466,-500.0,0.0003726,10]
[402149927,1768553634476,-875.73,0.0003726,10]
[402149928,1768553634490,-866.61,0.0003726,10]
[402149929,1768553634499,-542.86,0.0003726,10]
[402149930,1768553634514,-500.0,0.0003726,10]
[402149931,1768553634523,-513.96,0.0003726,10]
[402149932,1768553634539,-500.0,0.0003726,10]
[402149933,1768553634551,-853.02,0.0003726,10]
[402149934,1768553634565,-500.0,0.0003726,10]
[402149935,1768553634574,-500.0,0.0003726,10]
[402149936,1768553634588,-625.29,0.0003726,10]
[402149937,1768553634598,-568.61,0.0003726,10]
[402149938,1768553634609,-604.98760293,0.0003726,10]
[402149939,1768553634623,-500.0,0.0003726,10]
[402149940,1768553634634,-500.0,0.0003726,10]
[402149941,1768553634644,-517.88253299,0.0003726,10]
[402149942,1768553634653,-503.47,0.0003726,10]
[402149943,1768553634662,-500.0,0.0003726,10]
[402149944,1768553634671,-500.0,0.0003726,10]
[402149945,1768553634680,-500.0,0.0003726,10]
[402149946,1768553634688,-1479.39,0.0003726,10]
[402149947,1768553634697,-668.37,0.0003726,10]
[402149948,1768553634707,-554.51,0.0003726,10]
[402149949,1768553634715,-823.81,0.0003726,10]
[402149950,1768553634724,-522.66,0.0003726,10]
[402149951,1768553634733,-632.8,0.0003726,10]
[402149952,1768553634742,-760.77,0.0003726,10]
[402149953,1768553634751,-500.0,0.0003726,10]
[402149954,1768553634761,-500.0,0.0003726,10]
[402149955,1768553634769,-540.98,0.0003726,10]
[402149956,1768553634778,-500.0,0.0003726,10]
[402149957,1768553634787,-500.0,0.0003726,10]
[402149958,1768553634795,-500.0,0.0003726,10]
[402149959,1768553634805,-500.0,0.0003726,10]
[402149960,1768553634814,-745.1,0.0003726,10]
[402149961,1768553634823,-513.95,0.0003726,10]
[402149962,1768553634832,-543.44,0.0003726,10]
[402149963,1768553634841,-766.12,0.0003726,10]
[402149964,1768553634850,-500.0,0.0003726,10]
[402149965,1768553634859,-500.0,0.0003726,10]
[402149966,1768553634869,-602.84,0.0003726,10]
[402149967,1768553634878,-681.64,0.0003726,10]
[402149968,1768553634888,-946.6,0.0003726,10]
[402149969,1768553634898,-982.01,0.0003726,10]
[402149970,1768553634907,-500.0,0.0003726,10]
[402149971,1768553634918,-500.0,0.0003726,10]